Cogmind - Beta 16 @@@ ROGUE MODE // 2025.10.28 @ 03:37:00 Player: shapeshifter Result: Destroyed by G-73 Enforcer with Heavy Laser Performance ------------- Evolutions (9) 4500 Regions Visited (17) 3400 Robots Destroyed (145) 725 Value Destroyed (6777) 6777 Prototype IDs (70) 1400 Alien Tech Used (0) 0 Bonus (7696) 7696 TOTAL SCORE: 24498 Bonus ------- High Alert Combat Kills 495 Aligned with FarCom 300 Met Warlord at Base 500 MAIN.C Attacked Warlord 500 Warlord Defense Kills 1044 Hacked Protovariant 500 Met Warlord at Research 2000 Invited to Help at Command 2000 Scanned by Researcher 500 Friendly Fire -143 Cogmind --------- Core Integrity 0/1600 Matter 219/300 Energy 72/100 System Corruption 14% Temperature Cool (9) Movement Core (50) Location -1/Access Parts ------- > --- POWER (3) -------- (None) > --- PROPULSION (8) --- (None) > --- UTILITY (10) ----- 2N-1CE's Frost Array Experimental Targeting Computer Graphene Brace > --- WEAPON (4) ------- (None) > --- INVENTORY (5) ---- Hypervelocity EM Gauss Rifle Tachyon Dispersion Ray Vortex Cannon (26) Multirail Vortex Lance (40) Peak State ------------ > --- POWER ------------ Light Particle Reactor Quantum Reactor Quantum Reactor > --- PROPULSION ------- Biometal Leg Biometal Leg Biometal Leg Biometal Leg Enhanced Biometal Leg Myomer Exoskeleton > --- UTILITY ---------- 2N-1CE's Frost Array High-capacity Storage Unit Advanced Sensor Array Advanced Signal Interpreter Experimental Targeting Computer Experimental Target Analyzer Experimental Core Analyzer Layered Medium Armor Plating Advanced Force Field Ghost Barrier > --- WEAPON ----------- Nova Cannon Enhanced Nova Cannon Enhanced Nova Cannon Multirail > --- INVENTORY -------- Biometal Leg Heavy Shield Leg Heavy Shield Leg Experimental Energy Well Advanced Dynamic Insulation System Hypervelocity EM Gauss Rifle Tachyon Dispersion Ray Cooled Proton Cannon Vortex Cannon Vortex Cannon Nova Cannon Nova Cannon Nova Cannon Micro-nuke Launcher Improved Remote Datajack RU-N14's Throwing Claymores v3 Vortex Lance Portable AFG [Rating: 229] Favorites ----------- Power Neutrino Core Engine Light Ion Engine Power Core Neutrino Core Reactor Vortex Chain Reactor Propulsion Improved Gyrokinetic Inverter Treads Light Treads Leg Biometal Leg Wheel Wheel Hover Unit Improved Gyrokinetic Inverter Flight Unit Improved Flight Unit Utility Hacking Suite Device Advanced Sensor Array Storage High-capacity Storage Unit Processor Experimental Target Analyzer Hackware Hacking Suite Protection Reflective Plating Weapon Gravity Flail Energy Gun EM Pulse Gun Energy Cannon Enhanced Nova Cannon Ballistic Gun Light Assault Rifle Launcher Compact Tesla Bomb Launcher Special Weapon Improved Remote Datajack Impact Weapon Gravity Flail Slashing Weapon Molecular Scythe Piercing Weapon Makeshift Spear Special Melee Weapon Improved Datajack Build | -11 -10 -10 -10 -9 -8 -7 -6 -5 -4 -4 -4 -4 -3 -3 -3 -2 -1 ------- Run | Yrd Mat Min Exi Min Mat Fac Fac Fac Fac Upp Upp War Pro Res Tes Res Acc Slots Evolved 18 | . . . . . 4 2 2 2 2 . . . . 2 . 2 2 Power 2 | . . . . . . . 1 . . . . . . . . 1 . Propulsion 6 | . . . . . 1 1 1 1 . . . . . 2 . . . Utility 8 | . . . . . 2 1 . 1 2 . . . . . . . 2 Weapon 2 | . . . . . 1 . . . . . . . . . . 1 . Parts Attached 196 | 7 1 4 2 3 19 5 15 12 17 4 1 29 4 12 10 27 24 Power 19 | 1 . 2 . . 2 . 3 1 2 1 . . . 1 . 2 4 Engine 6 | 1 . 2 . . 1 . 1 1 . . . . . . . . . Core 4 | . . . . . 1 . 2 . . 1 . . . . . . . Reactor 9 | . . . . . . . . . 2 . . . . 1 . 2 4 Propulsion 54 | 2 . . . 2 6 1 5 4 4 3 . 7 . 5 . 10 5 Treads 3 | 2 . . . . 1 . . . . . . . . . . . . Leg 19 | . . . . 2 1 . . 1 . . . 2 . . . 8 5 Wheel 4 | . . . . . 3 1 . . . . . . . . . . . Hover 26 | . . . . . . . 5 3 4 3 . 4 . 5 . 2 . Flight 2 | . . . . . 1 . . . . . . 1 . . . . . Utility 63 | 2 1 . 1 . 6 2 4 4 8 . 1 8 3 6 7 3 7 Device 20 | 1 . . . . 2 . 1 1 3 . . 2 2 1 3 1 3 Storage 9 | 1 1 . . . 2 . . 1 . . . . . 1 2 . 1 Processor 15 | . . . . . . . 2 . 2 . 1 5 . 1 1 1 2 Hackware 9 | . . . . . 1 2 . 2 . . . . . 3 1 . . Protection 10 | . . . 1 . 1 . 1 . 3 . . 1 1 . . 1 1 Artifact . | . . . . . . . . . . . . . . . . . . Weapon 60 | 2 . 2 1 1 5 2 3 3 3 . . 14 1 . 3 12 8 Energy Gun 6 | 2 . . . . 1 . . . . . . 1 . . 2 . . Energy Cannon 16 | . . . . . . . . . . . . 1 . . 1 9 5 Ballistic Gun 14 | . . 2 1 1 4 . 2 3 . . . . . . . . 1 Ballistic Cannon . | . . . . . . . . . . . . . . . . . . Launcher 3 | . . . . . . . 1 . . . . . . . . 1 1 Special Weapon 9 | . . . . . . 1 . . . . . 6 1 . . 1 . Impact Weapon 6 | . . . . . . . . . 3 . . 3 . . . . . Slashing Weapon 1 | . . . . . . . . . . . . . . . . 1 . Piercing Weapon 4 | . . . . . . . . . . . . 3 . . . . 1 Special Melee Weapon 1 | . . . . . . 1 . . . . . . . . . . . Unidentified Prototypes 33 | . . . . . 2 . 2 1 3 . . 9 . 1 7 5 3 Parts Lost 63 | . . 3 . 3 2 . 4 . 12 6 . . 1 . . 4 28 Power 14 | . . 1 . 1 . . 1 . 4 . . . 1 . . . 6 Propulsion 17 | . . . . 2 1 . 2 . 1 3 . . . . . . 8 Utility 21 | . . . . . 1 . . . 7 1 . . . . . 3 9 Weapon 11 | . . 2 . . . . 1 . . 2 . . . . . 1 5 Highest Loss Streak 25 | . . 3 . 3 1 . 2 . 4 6 . . 1 . . 2 25 To Critical Strikes 2 | . . . . . . . . . 1 . . . . . . . 1 Average Backups 14 | 3 5 7 8 8 10 18 14 12 18 16 12 17 17 17 17 18 16 Power . | . 1 . . . 1 2 1 . . . . . 1 . . 1 1 Propulsion 2 | 1 2 2 2 2 2 3 3 1 3 3 2 2 2 2 3 2 2 Utility 4 | . 1 4 5 4 5 6 4 5 8 5 4 3 3 5 5 3 1 Weapon 5 | . 1 . 1 2 2 4 3 3 4 5 4 9 9 8 7 9 10 Tool/Special . | . . . . . . . . . . . . . . . . . . Unused Backups 43 | . . . 6 . 2 4 7 1 3 1 1 1 . 2 8 4 3 Power 5 | . . . . . . 1 1 . . . . . . . . 3 . Propulsion 9 | . . . 2 . 2 . 2 . . . . . . . 2 . 1 Utility 16 | . . . 4 . . 1 2 1 2 1 . 1 . 2 2 . . Weapon 13 | . . . . . . 2 2 . 1 . 1 . . . 4 1 2 Tool/Special . | . . . . . . . . . . . . . . . . . . Average Slot Usage (%) 86 | . 100 98 100 85 93 93 85 78 96 55 50 83 83 88 94 78 86 Engine 3 | . 14 13 14 . 1 7 5 1 2 . . 4 1 . . . . Core 2 | . . . . . 6 . 4 5 4 . 5 5 5 3 . . . Reactor 1 | . . . . . . . . . 1 . . . . . 4 5 9 Treads 3 | . 28 28 28 1 3 . . . . . . . . . . . . Leg 6 | . . . . 25 9 . . . . . . . . . . 13 22 Wheel 2 | . . . . . 11 25 3 . . . . . . . . . . Hover 13 | . . . . . . . 17 21 30 23 21 27 31 37 37 9 . Device 6 | . 14 14 9 . 9 2 . 2 9 . . 1 8 9 9 10 9 Storage 7 | . 14 14 14 14 9 7 6 5 5 5 5 5 5 4 5 4 4 Processor 8 | . . . . . . . 4 2 4 5 8 20 21 14 14 11 17 Hackware 6 | . . . . . 3 19 14 17 16 8 5 3 . 2 6 4 3 Protection 4 | . . . 4 14 9 7 6 2 3 . . 3 6 4 . 2 3 Energy Gun 1 | . 28 8 . . . . . . . . . . . . 2 . . Energy Cannon 2 | . . . . . . . . . . . . . . . 3 10 15 Ballistic Gun 10 | . . 18 28 28 26 23 20 14 8 . . . . . . . . Impact Weapon 2 | . . . . . . . . . 6 11 5 8 1 3 6 . . Peak Build Rating 229 | 7 7 9 13 15 37 40 70 89 119 79 60 127 120 159 171 213 229 Average Rating 92 | 5 7 8 10 13 29 39 59 70 103 69 59 100 107 133 165 182 215 On Entrance 67 | . 7 7 9 13 15 37 40 56 86 79 58 60 108 98 158 162 213 Avg Prop Armor Cover (%) 3 | . . . . . 6 . . . 7 4 . 2 . 2 . 1 . Naked Turns . | . . . . . . . . . . . . . . . . . . Heaviest Build 170 | 13 18 18 20 16 63 63 69 67 77 49 37 72 74 95 98 158 170 Greatest Support 232 | 40 40 40 40 20 36 46 54 73 77 54 48 72 72 109 111 232 232 Greatest Overweight (x) 4 | . . . . 4 2 1 1 1 1 1 . 2 1 . . 1 . Average Overweight (x) . | . . . . . 1 1 . . . . . . . . . . . Largest Inventory Capacity 20 | 8 10 10 10 10 20 20 20 20 20 20 15 20 20 20 20 20 20 Average Capacity 16 | 7 8 10 10 10 15 20 15 16 20 18 15 18 20 20 20 20 19 Most Carried 20 | 6 7 10 10 10 20 20 20 20 20 20 15 20 20 20 20 20 20 Average Carried 15 | 3 5 8 9 10 13 19 15 14 19 17 12 17 18 18 19 19 19 Final Capacity 20 | 8 10 10 10 10 20 20 15 20 20 15 15 20 20 20 20 20 20 Final Carried 20 | 5 6 10 10 10 20 20 15 19 19 15 12 20 19 19 20 20 20 Class Distribution -------------------- 24% | Mutant 11% | Hacker-Gunner 9% | Hacker-Mutant 7% | Scavenger-Skirmisher 6% | Scavenger-Tank 6% | Hacker-Skirmisher 5% | Derelict-Gladiator 5% | Hacker-Tank 5% | Scavenger-Gunner 3% | Gladiator 3% | Derelict-Mutant 3% | Scavenger-Mutant Dominant Class ---------------- Mutant | -10/Materials Mutant | -10/Mines Mutant | -10/Exiles Mutant | -9/Mines Scavenger-Skirmisher | -8/Materials Hacker-Tank | -7/Factory Scavenger-Tank | -6/Factory Hacker-Gunner | -5/Factory Hacker-Mutant | -4/Factory Hacker-Mutant | -4/Upper Caves Mutant | -4/Upper Caves Derelict-Gladiator | -4/Warlord Derelict-Mutant | -3/Proximity Caves Gladiator | -3/Research Hacker-Mutant | -3/Testing Hacker-Gunner | -2/Research Scavenger-Gunner | -1/Access Resources | -11 -10 -10 -10 -9 -8 -7 -6 -5 -4 -4 -4 -4 -3 -3 -3 -2 -1 ----------- Run | Yrd Mat Min Exi Min Mat Fac Fac Fac Fac Upp Upp War Pro Res Tes Res Acc Matter Collected 4025 | 263 . 69 4 113 659 166 383 196 418 92 53 419 90 11 91 685 313 Remotely . | . . . . . . . . . . . . . . . . . . Salvage Created 6574 | 41 . 81 . 117 826 257 258 228 1003 150 101 142 309 115 . 331 2615 Parts 294 | 7 . 11 . 10 36 20 11 9 20 2 1 2 13 3 . 21 128 Haulers Intercepted 10 | . . . . . 4 . 1 2 2 . . . 1 . . . . Recyclers Shooed 3 | . . . . . . . . . 2 . . . . . . . 1 Parts Field Recycled . | . . . . . . . . . . . . . . . . . . Retrieved Matter . | . . . . . . . . . . . . . . . . . . Parts Self-Destructed 9 | . . . . . . . . . . 1 . . 8 . . . . Prevented 6 | . . . . . . . . . . . 6 . . . . . . Parts Restored . | . . . . . . . . . . . . . . . . . . Kills | -11 -10 -10 -10 -9 -8 -7 -6 -5 -4 -4 -4 -4 -3 -3 -3 -2 -1 ------- Run | Yrd Mat Min Exi Min Mat Fac Fac Fac Fac Upp Upp War Pro Res Tes Res Acc Combat Hostiles Destroyed 108 | . . 6 . 5 10 2 2 . 9 6 4 8 8 1 . 6 41 Melee 9 | . . . . . . . . . 4 . 1 . 3 1 . . . Guns 25 | . . 6 . 5 10 2 2 . . . . . . . . . . Cannons 26 | . . . . . . . . . . . 1 2 . . . 2 21 AOE 33 | . . . . . . . . . . 6 . 6 5 . . 4 12 Classes Destroyed 19 | 1 . 1 . 1 9 1 1 . 1 . . 1 1 . . 1 1 Worker 5 | . . . . . 1 2 . . 1 . . . . . . . 1 Builder 5 | . . . . . 1 1 . . 1 . . . . . . 1 1 Tunneler 3 | 2 . . . . . . . . . . . . . 1 . . . Hauler 10 | . . . . . 4 . 1 2 2 . . . 1 . . . . Recycler 5 | . . . . . 1 1 . . 1 . . . . . . . 2 Mechanic 1 | . . . . . . . 1 . . . . . . . . . . Operator 4 | . . . . . 1 1 . 1 . . . . . . . 1 . Watcher 3 | . . . . . 1 . . . . . . . . 1 . . 1 Swarmer 36 | . . 6 . 3 . . . . . 2 4 2 . . . 4 15 Grunt 30 | . . . . 2 7 1 . . 3 1 . 1 5 . . . 10 Brawler 5 | . . . . . 1 . . . . . . 3 . . . . 1 Duelist 4 | . . . . . . . . . 2 . . 1 . . . . 1 Sentry 6 | . . . . . 1 . 1 . 1 . . . . 1 . . 2 Hunter 11 | . . . . . 1 . . . 2 2 . . 2 . . 1 3 Programmer 10 | . . . . . . 1 1 . 1 1 . . . . . . 6 Q-Series 3 | . . . . . . . . . . . . . . . . . 3 Behemoth 1 | . . . . . . . . . . . . . 1 . . . . Striker 1 | . . . . . . . . . . . . 1 . . . . . Executioner 1 | . . . . . . . . . . . . . . . . 1 . Decomposer 1 | . . . . . . . . . . 1 . . . . . . . Wasp 1 | . . . . . . . . . . . . . . . . 1 . Best Kill Streak 14 | 2 . 3 . 3 9 2 2 2 3 6 4 5 6 1 . 5 14 Combat Bots Only 13 | . . 3 . 3 3 1 1 . 3 6 4 5 5 1 . 5 13 Max Kills in Single Turn 4 | 1 . 1 . 1 2 1 1 1 1 2 1 2 3 1 . 4 4 Gunslinging . | . . . . . . . . . . . . . . . . . . Exploded 4 | . . . . . . . . . . 2 . 2 3 . . 4 4 Melee 1 | . . . . . . . . . 1 . 1 . 1 1 . . . Uniques/NPCs Destroyed . | . . . . . . . . . . . . . . . . . . Combat | -11 -10 -10 -10 -9 -8 -7 -6 -5 -4 -4 -4 -4 -3 -3 -3 -2 -1 -------- Run | Yrd Mat Min Exi Min Mat Fac Fac Fac Fac Upp Upp War Pro Res Tes Res Acc Hostile Shots Fired 1164 | . . 64 . 47 57 5 94 . 112 130 20 2 47 6 64 42 474 Missed 392 | . . 11 . 9 15 1 41 . 27 54 10 . 17 3 42 12 150 Deflected 14 | . . . . . . . . . . . . . . . . . 14 Hits 772 | . . 53 . 38 42 4 53 . 85 76 10 2 30 3 22 30 324 Melee 23 | . . . . . . . . . . . 5 . . . 1 11 6 Projectile 749 | . . 53 . 38 42 4 53 . 85 76 5 2 30 3 21 19 318 AOE 13 | . . . . . . . 3 . 3 . . . . . . 6 1 Critical Strikes 34 | . . . . 1 2 . 2 . 7 1 . . 1 . 2 2 16 Actively Blocked 1 | . . . . . . . . . . . . . . . . . 1 Damage Taken 15897 | . . 457 . 420 591 59 1064 . 1814 1358 100 70 514 72 411 1152 7815 Core 3317 | . . 71 . 84 75 16 119 . 387 604 24 . 109 . 114 103 1611 Absorbed by Shields 436 | . . . . . . . . . . . . . . . . . 436 Redirected to Shielding 196 | . . . . . . . . . 102 . . 45 49 . . . . Ignored by Resistances 66 | . . . . . 60 4 2 . . . . . . . . . . Regen/Repaired (Parts) 74 | . . . . . . . . . . . . 57 . . . 17 . Core Remaining (%) 76 | 100 . . . 38 86 97 86 100 . . . . 2 . 91 92 . Volleys Fired 302 | 5 . 22 . 27 47 8 20 9 7 4 . 12 7 . 27 26 81 Largest 4 | 2 . 2 . 2 3 3 3 3 3 1 . 1 1 . 1 4 4 Hottest 480 | 80 . 80 . 44 109 78 84 101 101 45 . . . . 113 466 480 Shots Fired 669 | 10 . 32 . 54 141 24 60 25 21 4 . 12 7 . 27 51 201 Gun 372 | 10 . 32 . 54 141 24 60 25 21 . . . . . 5 . . Cannon 245 | . . . . . . . . . . . . . . . 21 43 181 Launcher 22 | . . . . . . . . . . 4 . . . . . 1 17 Special 30 | . . . . . . . . . . . . 12 7 . 1 7 3 Kinetic 337 | . . 14 . 54 139 24 60 25 21 . . . . . . . . Thermal 243 | . . . . . 2 . . . . . . . . . 21 43 177 Explosive 28 | . . . . . . . . . . 4 . 12 7 . . 1 4 Electromagnetic 52 | 10 . 18 . . . . . . . . . . . . 5 . 19 Entropic 1 | . . . . . . . . . . . . . . . . . 1 Robot Hit Streak 30 | 2 . 2 . 7 9 5 8 10 4 5 . 11 17 . 19 7 30 Robot Miss Streak 5 | 3 . 4 . 5 5 2 4 1 2 4 . 1 . . 3 4 3 Penetration Max 1 | . . . . . 1 1 1 1 . . . . . . . . . Secondary Targets 5 | . . . . 2 1 . 2 . . . . . . . . . . Max Gunslinging Chain 1 | . . . . 1 1 . 1 . . . . . . . . . . Shots Hit Robots 410 | 4 . 12 . 34 82 12 37 17 35 4 3 11 15 6 5 30 103 Core Hits 265 | 2 . 8 . 13 42 10 14 7 11 29 . 13 14 2 2 12 86 Critical Kills 5 | . . . . . . . 1 . 2 . . . . . . . 2 Critical Parts Destroyed 7 | . . . . . . . . . 6 . . . . 1 . . . Critical Strikes 19 | . . . . . . . 1 . 8 . . 2 4 1 . . 3 Meltdown 2 | . . . . . . . . . . . . . . . . . 2 Destroy 1 | . . . . . . . 1 . . . . . . . . . . Smash 9 | . . . . . . . . . 8 . . . . 1 . . . Sever 4 | . . . . . . . . . . . . 2 1 . . . 1 Sunder 3 | . . . . . . . . . . . . . 3 . . . . Melee Attacks 136 | . . . . . . 1 . . 48 1 5 23 11 16 26 5 . Impact 119 | . . . . . . . . . 48 1 5 23 2 12 26 2 . Slashing 3 | . . . . . . . . . . . . . . . . 3 . Piercing . | . . . . . . . . . . . . . . . . . . Entropic 13 | . . . . . . . . . . . . . 9 4 . . . Sneak Attacks 6 | . . . . . . 1 . . 2 1 . . . 2 . . . Combat Hostiles . | . . . . . . . . . . . . . . . . . . Follow-up Attacks 9 | . . . . . . . . . 8 . . . . 1 . . . Damage Inflicted 22340 | 52 . 211 . 333 1382 245 954 408 2059 1210 238 2444 2633 637 144 1541 7849 Guns 3761 | 52 . 134 . 333 1382 245 822 408 320 . . . . . 65 . . Cannons 4761 | . . . . . . . . . . . . . . . 30 1079 3652 Explosions 9144 | . . 77 . . . . . . . 1016 . 1978 1618 . . 372 4083 Melee 3657 | . . . . . . . . . 1739 194 238 . 710 637 49 90 . Ramming 132 | . . . . . . . 132 . . . . . . . . . . Kinetic 3566 | . . 69 . 333 1369 245 822 408 320 . . . . . . . . Thermal 4916 | . . 77 . . 13 . . . . . . . . . 30 1079 3717 Explosive 7106 | . . . . . . . . . . 1016 . 1978 1618 . . 372 2122 Electromagnetic 2000 | 52 . 65 . . . . . . . . . . . . 65 . 1818 Impact 2707 | . . . . . . . . . 1739 194 238 . 114 283 49 90 . Slashing 885 | . . . . . . . . . . . . 466 305 . . . 114 Piercing . | . . . . . . . . . . . . . . . . . . Entropic 1028 | . . . . . . . . . . . . . 596 354 . . 78 Highest Corruption 14 | . . . . . 2 . 4 . 8 10 10 10 . . 3 . 14 Average Corruption 5 | . . . . . 2 . 2 . 4 8 10 10 . . 1 . 5 Corruption Purged 2 | . . . . . . . . . 2 . . . . . . . . Corruption Blocked . | . . . . . . . . . . . . . . . . . . Effects 40 | . . . . . 6 . . . 5 12 4 2 . . 2 . 9 Message Errors 8 | . . . . . 1 . . . . 4 1 1 . . . . 1 Matter Fused 11 | . . . . . 4 . . . 1 3 2 . . . . . 1 Heat Flow Errors 6 | . . . . . . . . . 1 1 1 1 . . . . 2 Energy Discharges 5 | . . . . . . . . . 1 2 . . . . . . 2 Parts Rejected 1 | . . . . . . . . . . 1 . . . . . . . Parts Fused 1 | . . . . . . . . . 1 . . . . . . . . Data Loss (minor) 3 | . . . . . 1 . . . . . . . . . 1 . 1 Data Loss (major) 3 | . . . . . . . . . 1 1 . . . . 1 . . Weapon Failures 2 | . . . . . . . . . . . . . . . . . 2 Overload Shots . | . . . . . . . . . . . . . . . . . . Overflow Damage 1755 | . . . . . . . . . 771 197 207 65 110 171 . 107 127 Projectiles 149 | . . . . . . . . . 15 . 69 9 . . . 27 29 Explosions 219 | . . . . . . . . . . 20 . 56 45 . . . 98 Melee 1387 | . . . . . . . . . 756 177 138 . 65 171 . 80 . Knockbacks 12 | . . . . . . . 1 . 9 . 2 . . . . . . Impact 9 | . . . . . . . 1 . 7 . 1 . . . . . . Kinetic . | . . . . . . . . . . . . . . . . . . Secondary 3 | . . . . . . . . . 2 . 1 . . . . . . Self-Inflicted Damage 273 | . . 37 . . . . 65 . . 91 . . . . . . 80 Shots 9 | . . 1 . . . . . . . 4 . . . . . . 4 Rammed 8 | . . . . . . . 8 . . . . . . . . . . Targets Rammed 8 | . . . . . . . 8 . . . . . . . . . . Kicked . | . . . . . . . . . . . . . . . . . . Crushed . | . . . . . . . . . . . . . . . . . . Highest Temperature 377 | 54 . 72 . 121 33 56 72 102 297 216 171 303 329 10 377 174 252 Average Temperature 69 | 25 . 35 . 79 15 19 28 29 98 74 38 74 101 5 55 72 78 Received Heat Transfer 1330 | . . . . 204 324 18 234 . 183 108 . . 18 . 58 . 183 Effects 7 | . . . . . . . . . 3 . . 3 1 . . . . Interference 6 | . . . . . . . . . 3 . . 3 . . . . . Short Circuit 1 | . . . . . . . . . . . . . 1 . . . . Siege Activations . | . . . . . . . . . . . . . . . . . . Martial Activations . | . . . . . . . . . . . . . . . . . . Shielding Activations 1 | . . . . . . . . . . . . . . . . . 1 Total Turns 20 | . . . . . . . . . . . . . . . . . 20 Longest Duration 20 | . . . . . . . . . . . . . . . . . 20 Robots Disrupted 1 | . . . . . . . . . . . . . . . 1 . . Combat Hostiles 1 | . . . . . . . . . . . . . . . 1 . . Robots Corrupted 13 | . . . . . . . . . 5 . 2 . . . . . 6 Combat Hostiles 13 | . . . . . . . . . 5 . 2 . . . . . 6 Parts Fried 31 | . . . . . . . . . 13 . 4 1 . 4 . 1 8 Impact Corruptions 31 | . . . . . . . . . 17 5 5 . 1 1 . 2 . Robots Melted 2 | . . . . . . . . . . . . . . . . . 2 Combat Hostiles 2 | . . . . . . . . . . . . . . . . . 2 Parts Melted 19 | . . . . . . . 2 . . . . . . . . 1 16 Heat Transferred 4742 | . . 100 . . 15 . . . . . . . . . 37 962 3628 Parts Sabotaged 1 | . . . . . . . . . . . . . . . 1 . . Parts Stolen 2 | . . . . . . . . . . . 2 . . . . . . Parts Stripped . | . . . . . . . . . . . . . . . . . . Power Chain Reactions 3 | . . 1 . . . . . . . . . . . . . . 2 Alert | -11 -10 -10 -10 -9 -8 -7 -6 -5 -4 -4 -4 -4 -3 -3 -3 -2 -1 ------- Run | Yrd Mat Min Exi Min Mat Fac Fac Fac Fac Upp Upp War Pro Res Tes Res Acc Maximum Alert Level 3 | . . . . . . . . . . . . . . . 1 . 3 Low Security (%) 90 | 100 100 100 . 100 100 100 100 100 100 . . . . 100 89 100 26 Level 1 7 | . . . . . . . . . . . . . . . 10 . 54 Level 2 1 | . . . . . . . . . . . . . . . . . 10 Level 3 1 | . . . . . . . . . . . . . . . . . 8 Level 4 . | . . . . . . . . . . . . . . . . . . Level 5 . | . . . . . . . . . . . . . . . . . . High Security . | . . . . . . . . . . . . . . . . . . Max Security . | . . . . . . . . . . . . . . . . . . Peak Influence 824 | 5 24 70 . 62 121 138 32 47 113 . . . . 35 221 162 824 Initial 119 | . . . . . . . . . 2 . . . . 9 . 119 84 Average 62 | . 7 13 . 7 41 37 3 12 37 . . . . 4 72 38 315 Influence Increases 4359 | 10 34 160 . 120 319 219 104 133 358 155 90 265 185 93 461 297 1356 Destroy 0b10 Robot/C 2160 | . . 120 . 100 200 40 40 . 180 120 80 160 160 20 . 120 820 Destroy 0b10 Robot/NC 180 | 10 . . . . 45 25 10 15 25 . . . 5 10 . 10 25 Destroy Leader 334 | . . 20 . 20 50 10 12 4 24 20 10 . 20 12 . 20 112 Trap Triggered on 0b10 10 | . . . . . . . . . 10 . . . . . . . . Successful Hack 260 | . 34 . . . 22 24 24 62 6 . . . . 20 14 30 24 Select Force Hacks 50 | . . . . . . . . 20 30 . . . . . . . . Disable Machine 300 | . . 15 . . . 90 . 15 45 . . . . . 105 . 30 Destroy Structure 510 | . . 5 . . 2 30 3 2 8 . . . . 16 72 102 270 Partial Spotted 60 | . . . . . . . . 15 . . . . . 15 30 . . Lose Combat Pursuer 495 | . . . . . . . 15 . 30 15 . 105 . . 240 15 75 Influence Decreases 3633 | 10 34 160 . 120 319 219 104 127 319 145 75 164 341 106 250 368 772 Entered New Map 434 | . . . . . . . . . 4 18 11 70 171 6 2 94 58 Time Decay 2649 | 10 34 130 . 110 299 219 94 127 195 97 64 94 160 100 228 254 434 Lost Part 530 | . . 30 . 10 20 . 10 . 120 30 . . 10 . . 20 280 Lost Ally 20 | . . . . . . . . . . . . . . . 20 . . Squads Dispatched 45 | . . . . . 4 3 10 2 8 . . . . 1 5 1 11 Investigation 8 | . . . . . . 1 2 1 2 . . . . . . 1 1 Extermination 9 | . . . . . . 2 1 . 1 . . . . 1 1 . 3 Reinforcement 12 | . . . . . 1 . 4 1 1 . . . . . 3 . 2 Assault 6 | . . . . . . . . . 4 . . . . . 1 . 1 Garrison 10 | . . . . . 3 . 3 . . . . . . . . . 4 Intercept . | . . . . . . . . . . . . . . . . . . Searches Triggered . | . . . . . . . . . . . . . . . . . . Construction Impeded 1 | . . . . . . . 1 . . . . . . . . . . Haulers Reinforced 2 | . . . . . . . . 1 1 . . . . . . . . Active Scanning Responses . | . . . . . . . . . . . . . . . . . . Cargo Convoy Interrupts 1 | . . . . . . . 1 . . . . . . . . . . Stealth | -11 -10 -10 -10 -9 -8 -7 -6 -5 -4 -4 -4 -4 -3 -3 -3 -2 -1 --------- Run | Yrd Mat Min Exi Min Mat Fac Fac Fac Fac Upp Upp War Pro Res Tes Res Acc Distress Signals 11 | . . . . . 1 . 1 . . . . . 1 . 1 6 1 Communications Jammed . | . . . . . . . . . . . . . . . . . . Distress Signals . | . . . . . . . . . . . . . . . . . . Times Spotted 272 | . . 8 . 5 13 12 39 3 33 10 8 17 5 1 35 17 66 Peak Tracking Total 18 | . . 3 . 3 3 4 10 2 5 8 4 8 2 1 18 7 10 Tactical Retreats 14 | . . . . . . . 1 . 1 1 . 2 . . 5 1 3 Traps | -11 -10 -10 -10 -9 -8 -7 -6 -5 -4 -4 -4 -4 -3 -3 -3 -2 -1 ------- Run | Yrd Mat Min Exi Min Mat Fac Fac Fac Fac Upp Upp War Pro Res Tes Res Acc Traps Triggered 4 | . . . . . 1 . . . . . . . . . . 1 2 Indirectly . | . . . . . . . . . . . . . . . . . . Trap Hack Attempts . | . . . . . . . . . . . . . . . . . . Triggered . | . . . . . . . . . . . . . . . . . . Disarmed . | . . . . . . . . . . . . . . . . . . Reprogrammed . | . . . . . . . . . . . . . . . . . . Reused 1 | . . . . . . . . . 1 . . . . . . . . Traps Reconfigurated 7 | . . . . . . . . . 7 . . . . . . . . Traps Extracted . | . . . . . . . . . . . . . . . . . . Installed . | . . . . . . . . . . . . . . . . . . Triggered 1 | . . . . . . . . . 1 . . . . . . . . Machines | -11 -10 -10 -10 -9 -8 -7 -6 -5 -4 -4 -4 -4 -3 -3 -3 -2 -1 ---------- Run | Yrd Mat Min Exi Min Mat Fac Fac Fac Fac Upp Upp War Pro Res Tes Res Acc Machines Disabled 21 | . . 1 . . . 6 . 1 3 . . 1 . . 7 . 2 Max in Single Turn 6 | . . 1 . . . 6 . 1 1 . . 1 . . 1 . 1 Garrison Access 4 | . . . . . . . . 1 2 . . . . . . . 1 Energy Cycler 1 | . . . . . . . . . . . . . . . . . 1 Machines Repaired . | . . . . . . . . . . . . . . . . . . Machines Dismantled 1 | . . . . . . . . . . . . 1 . . . . . Machines Sabotaged . | . . . . . . . . . . . . . . . . . . Overloaded Fab Kills . | . . . . . . . . . . . . . . . . . . Hacking | -11 -10 -10 -10 -9 -8 -7 -6 -5 -4 -4 -4 -4 -3 -3 -3 -2 -1 --------- Run | Yrd Mat Min Exi Min Mat Fac Fac Fac Fac Upp Upp War Pro Res Tes Res Acc Machines Accessed 52 | . 2 . 2 1 5 4 5 7 3 . . 4 . 5 7 1 6 Terminals 24 | . 2 . . 1 4 3 1 3 1 . . . . 1 4 1 3 Fabricators 5 | . . . . . . . 2 1 1 . . . . 1 . . . Repair Stations . | . . . . . . . . . . . . . . . . . . Recycling Units 5 | . . . . . . . 1 1 1 . . . . 2 . . . Scanalyzers 6 | . . . . . 1 . 1 1 . . . . . 1 2 . . Garrison Access 6 | . . . . . . 1 . 1 . . . . . . 1 . 3 Total Hacks 139 | . 10 . 2 3 18 17 13 12 10 . . 5 . 17 17 3 12 Successful 69 | . 5 . 2 1 10 6 11 9 5 . . 5 . 6 5 2 2 Failed 69 | . 5 . . 2 8 11 2 3 5 . . . . 10 12 1 10 Catastrophic 18 | . 3 . . . . 3 . . 1 . . . . 3 4 . 4 Database Lockouts 1 | . . . . . . . . . . . . . . 1 . . . Manual 52 | . 10 . 1 . 14 12 5 2 6 . . . . 1 . 1 . Terminals 76 | . 10 . . 3 13 14 4 6 4 . . . . 2 10 3 7 Fabricators 12 | . . . . . . . 4 1 2 . . . . 5 . . . Repair Stations . | . . . . . . . . . . . . . . . . . . Recycling Units 11 | . . . . . . . 1 1 4 . . . . 5 . . . Scanalyzers 21 | . . . . . 5 . 4 3 . . . . . 5 4 . . Garrison Access 12 | . . . . . . 3 . 1 . . . . . . 3 . 5 Terminal Hacks 25 | . 1 . 2 1 1 4 2 3 1 . . 5 . . 3 1 1 Record 5 | . . . 1 . . . . . . . . 4 . . . . . Part Schematic 2 | . . . . . . 1 . 1 . . . . . . . . . Open Door 1 | . . . . . . . . . . . . 1 . . . . . Level Access Points 1 | . . . . . . . . . . . . . . . . 1 . Branch Access Points 1 | . . . . . . . . . 1 . . . . . . . . Emergency Access Points 1 | . . . . . . . . . . . . . . . . . 1 Terminal Index 2 | . . . . . . 1 1 . . . . . . . . . . Fabricator Index 3 | . . . . . . 1 1 1 . . . . . . . . . Scanalyzer Index 1 | . . . . . . . . 1 . . . . . . . . . Zone Layout 6 | . 1 . . 1 1 1 . . . . . . . . 2 . . Proto ID Catalog 1 | . . . 1 . . . . . . . . . . . . . . Protovariant Controls 1 | . . . . . . . . . . . . . . . 1 . . Fabricator Hacks 8 | . . . . . . . 3 . 1 . . . . 4 . . . Load Schematic 5 | . . . . . . . 2 . 1 . . . . 2 . . . Build 3 | . . . . . . . 1 . . . . . . 2 . . . Repair Station Hacks . | . . . . . . . . . . . . . . . . . . Recycling Unit Hacks 3 | . . . . . . . 1 1 1 . . . . . . . . Retrieve Components 3 | . . . . . . . 1 1 1 . . . . . . . . Scanalyzer 15 | . . . . . 5 . 3 3 . . . . . 2 2 . . Retrieve Study 15 | . . . . . 5 . 3 3 . . . . . 2 2 . . Garrison Access Hacks 2 | . . . . . . . . 1 . . . . . . . . 1 Seal Access 2 | . . . . . . . . 1 . . . . . . . . 1 Unauthorized Hacks 16 | . 4 . . . 4 2 2 1 2 . . . . . . 1 . Terminals 11 | . 4 . . . 4 1 1 . . . . . . . . 1 . Botnet 2 | . 2 . . . . . . . . . . . . . . . . Operators 1 | . . . . . . . . . . . . . . . . 1 . Skim 8 | . 2 . . . 4 1 1 . . . . . . . . . . Fabricators 3 | . . . . . . . 1 1 1 . . . . . . . . Download 1 | . . . . . . . . 1 . . . . . . . . . Recompile 2 | . . . . . . . 1 . 1 . . . . . . . . Repair Stations . | . . . . . . . . . . . . . . . . . . Recycling Units 1 | . . . . . . . . . 1 . . . . . . . . Tunnel 1 | . . . . . . . . . 1 . . . . . . . . Scanalyzers . | . . . . . . . . . . . . . . . . . . Garrison Access 1 | . . . . . . 1 . . . . . . . . . . . Redirect 1 | . . . . . . 1 . . . . . . . . . . . Data Cores Recovered 5 | . . . . . 1 . . 2 . . . . . . . 2 . Used . | . . . . . . . . . . . . . . . . . . Hacking Detections 41 | . 2 . . 1 5 4 4 5 1 . . . . 5 7 1 6 Full Trace Events 2 | . . . . . . . 1 . . . . . . . . . 1 Feedback Events . | . . . . . . . . . . . . . . . . . . Feedback Blocked 1 | . . . . . . . . . . . . . . . . . 1 Robot Schematics Acquired . | . . . . . . . . . . . . . . . . . . Robots Built . | . . . . . . . . . . . . . . . . . . Authchips . | . . . . . . . . . . . . . . . . . . Time . | . . . . . . . . . . . . . . . . . . Total Robot Build Rating . | . . . . . . . . . . . . . . . . . . Part Schematics Acquired 3 | . . . . . . 1 . 2 . . . . . . . . . Parts Built 6 | . . . . . . . 2 . . . . . . 4 . . . Authchips 2 | . . . . . . . . . . . . . . 2 . . . Time 127 | . . . . . . . 35 . . . . . . 92 . . . Total Part Build Rating 48 | . . . . . . . 12 . . . . . . 36 . . . Part Studies Acquired 14 | . . . . . 4 . 3 3 . . . . . 2 2 . . Parts Repaired . | . . . . . . . . . . . . . . . . . . Time . | . . . . . . . . . . . . . . . . . . Parts Recycled . | . . . . . . . . . . . . . . . . . . Recycled Matter . | . . . . . . . . . . . . . . . . . . Retrieved Matter . | . . . . . . . . . . . . . . . . . . Retrieved Components 6 | . . . . . . . 2 3 1 . . . . . . . . Parts Scanalyzed . | . . . . . . . . . . . . . . . . . . Part Schematics Acquired . | . . . . . . . . . . . . . . . . . . Parts Damaged . | . . . . . . . . . . . . . . . . . . Bothacking | -11 -10 -10 -10 -9 -8 -7 -6 -5 -4 -4 -4 -4 -3 -3 -3 -2 -1 ------------ Run | Yrd Mat Min Exi Min Mat Fac Fac Fac Fac Upp Upp War Pro Res Tes Res Acc Used RIF Installer . | . . . . . . . . . . . . . . . . . . Robots Hacked 6 | . . . . . . 1 . . . . . . . . . 5 . Non-combat 2 | . . . . . . . . . . . . . . . . 2 . Combat 4 | . . . . . . 1 . . . . . . . . . 3 . Robot Hacks Applied 6 | . . . . . . 1 . . . . . . . . . 5 . parse_system 6 | . . . . . . 1 . . . . . . . . . 5 . Relay Couplers Released 6 | . . . . . . . . . 3 . . . . . . . 3 Machine Destruction 3 | . . . . . . . . . 3 . . . . . . . . Programmers 3 | . . . . . . . . . . . . . . . . . 3 Fabnet Peak Effective % . | . . . . . . . . . . . . . . . . . . Robots Rewired 1 | . . . . . . . . . . . . . . . 1 . . Allies Hacked . | . . . . . . . . . . . . . . . . . . Hacks Repelled . | . . . . . . . . . . . . . . . . . . Allies | -11 -10 -10 -10 -9 -8 -7 -6 -5 -4 -4 -4 -4 -3 -3 -3 -2 -1 -------- Run | Yrd Mat Min Exi Min Mat Fac Fac Fac Fac Upp Upp War Pro Res Tes Res Acc Total Allies 1 | . . . . . . . . . . . . . . . 1 . . Largest Group 1 | . . . . . . . . . . . . . . . 1 . . Highest-Rated Group 149 | . . . . . . . . . . . . . . . 149 . . Highest-Rated Ally 149 | . . . . . . . . . . . . . . . 149 . . Total Orders . | . . . . . . . . . . . . . . . . . . Ally Attacks 2 | . . . . . . . . . . . . . . . 2 . . Total Damage 151 | . . . . . . . . . . . . . . . 151 . . Kills . | . . . . . . . . . . . . . . . . . . Allies Corrupted 1 | . . . . . . . . . . . . . . . 1 . . Allies Melted . | . . . . . . . . . . . . . . . . . . Intel | -11 -10 -10 -10 -9 -8 -7 -6 -5 -4 -4 -4 -4 -3 -3 -3 -2 -1 ------- Run | Yrd Mat Min Exi Min Mat Fac Fac Fac Fac Upp Upp War Pro Res Tes Res Acc Active Infowar (turns) 6105 | 20 121 679 388 . . . 439 . 377 . . 738 275 294 483 1296 995 Sensors 2976 | . . . . . . . 2 . 377 . . . . . 306 1296 995 Seismic 1712 | 20 121 679 388 . . . . . . . . . . 294 210 . . Decoding 1013 | . . . . . . . . . . . . 738 275 . . . . T.N.C. 437 | . . . . . . . 437 . . . . . . . . . . Jamming 2 | . . . . . . . . . . . . . 2 . . . . Robot Analysis Total . | . . . . . . . . . . . . . . . . . . Derelict Logs Recovered 5 | . . 2 . 3 . . . . . . . . . . . . . Drone Launches . | . . . . . . . . . . . . . . . . . . Drone Recoveries . | . . . . . . . . . . . . . . . . . . Exploration | -11 -10 -10 -10 -9 -8 -7 -6 -5 -4 -4 -4 -4 -3 -3 -3 -2 -1 ------------- Run | Yrd Mat Min Exi Min Mat Fac Fac Fac Fac Upp Upp War Pro Res Tes Res Acc Turns Passed 11250 | 140 121 679 545 808 997 653 764 401 693 342 154 1275 320 515 483 1296 1064 Spaces Moved 9032 | 82 74 385 334 595 586 444 602 449 452 242 228 1374 340 384 598 1151 712 Core 76 | 22 . . . 1 . . . . . . . . . . . . 53 Treads 871 | 60 74 385 334 . 18 . . . . . . . . . . . . Legs 2187 | . . . . 594 162 . . . . . . 35 . . . 737 659 Wheels 902 | . . . . . 406 444 52 . . . . . . . . . . Hover 4996 | . . . . . . . 550 449 452 242 228 1339 340 384 598 414 . Flight . | . . . . . . . . . . . . . . . . . . Fastest Speed 37 | 50 160 160 160 120 91 90 52 52 52 58 58 48 48 37 37 37 50 Average Speed 85 | 130 160 160 160 120 128 90 56 53 57 119 58 62 49 40 37 97 101 Slowest Speed 320 | 160 160 160 160 250 320 91 105 118 147 147 58 240 101 44 41 160 106 Overloaded Moves . | . . . . . . . . . . . . . . . . . . Propulsion Burnouts . | . . . . . . . . . . . . . . . . . . Robots Hopped . | . . . . . . . . . . . . . . . . . . Potential Cave-ins 5 | . . . . . . . . . . . . . . . . . 5 Cave-ins Triggered . | . . . . . . . . . . . . . . . . . . Exploration Rate (%) 40 | 6 17 54 68 98 41 16 14 13 17 48 50 94 49 12 81 31 25 Regions Visited 17 Branch Regions 8 Pre-discovered Areas 6 | . . 1 1 2 . . . . 1 . . 1 . . . . . Known Exits Taken 8 | . . . 1 . . . . . 1 1 1 1 . 1 1 1 . Unknown Exits Taken 9 | 1 1 1 . 1 1 1 1 1 . . . . 1 . . . . Scrap Searched 6 | . . 2 . 2 . . . . . 1 1 . . . . . . Spaces Dug 107 | . . . . . . . . . . . . 18 29 8 31 5 16 Terrain Destroyed 398 | . . 5 . . . 31 . 3 3 61 . 73 53 8 37 36 88 Melee 48 | . . . . . . . . . . . . 18 . 8 18 4 . Projectile 100 | . . . . . . . . 3 3 . . 1 1 . 19 15 58 AOE 250 | . . 5 . . . 31 . . . 61 . 54 52 . . 17 30 Terrain Rammed . | . . . . . . . . . . . . . . . . . . Walls Destroyed . | . . . . . . . . . . . . . . . . . . Machines Disabled . | . . . . . . . . . . . . . . . . . . Actions | -11 -10 -10 -10 -9 -8 -7 -6 -5 -4 -4 -4 -4 -3 -3 -3 -2 -1 --------- Run | Yrd Mat Min Exi Min Mat Fac Fac Fac Fac Upp Upp War Pro Res Tes Res Acc Total 11870 | 105 77 419 348 642 739 678 989 592 814 285 241 1745 476 726 797 1290 907 Wait 1745 | . . 1 . 15 45 207 308 99 258 29 7 248 98 280 88 21 41 Move 9015 | 81 73 384 333 594 585 443 601 448 451 241 227 1373 339 383 597 1150 712 Hop . | . . . . . . . . . . . . . . . . . . Pick Up 207 | 12 2 7 6 1 27 7 14 16 19 1 1 24 4 17 15 20 14 Fast Attach 47 | . . . . 2 3 1 . 3 4 1 . 10 . 1 10 11 1 Attach 124 | 7 . 3 . . 13 1 9 7 12 4 1 19 7 12 . 13 16 Detach 22 | . . . . . 1 . . . . 1 . 5 5 1 . 8 1 Swap 94 | . 1 1 2 1 4 5 9 3 11 1 . 8 2 9 7 9 21 Drop 182 | . 1 1 7 2 14 5 20 7 17 2 . 20 3 10 26 27 20 Fire 302 | 5 . 22 . 27 47 8 20 9 7 4 . 12 7 . 27 26 81 Melee 114 | . . . . . . 1 . . 35 1 5 18 11 13 25 5 . Ram 8 | . . . . . . . 8 . . . . . . . . . . Kick . | . . . . . . . . . . . . . . . . . . Crush . | . . . . . . . . . . . . . . . . . . Escape Stasis 2 | . . . . . . . . . . . . . . . 2 . . Rewire . | . . . . . . . . . . . . . . . . . . Trap . | . . . . . . . . . . . . . . . . . . Miscellaneous 8 | . . . . . . . . . . . . 8 . . . . . Route ------- -11/Scrapyard -10/Materials -10/Mines (discovered 2 exits: [*Mat] / *Exi) -10/Exiles (discovered 2 exits: *Min x2) -9/Mines (discovered 2 exits: *Mat x2) -8/Materials -7/Factory (discovered 2 exits: *Fac / [*Low]) -6/Factory -5/Factory (discovered 2 exits: *Fac / [*Upp]) -4/Factory (discovered 6 exits: *Res / *Upp x2 / Ext x2 / Arm) -4/Upper Caves -4/Upper Caves (discovered 2 exits: *Res / *War) -4/Warlord -3/Proximity Caves -3/Research -3/Testing -2/Research (discovered 4 exits: *Acc x3 / [*Qua]) -1/Access History --------- Turn | Location | Event 11 | -11/Scrapyard | Discovered new exit (range 15) 141 | -11/Scrapyard | Entered Materials 225 | -10/Materials | Discovered new exit (range 3) 262 | -10/Materials | Entered Mines 306 | -10/Mines | Build established: Mutant 371 | -10/Mines | Found a damaged Exp. Sensor Array with a note attached 377 | -10/Mines | Found Prototype Device 510 | -10/Mines | Lost 3 parts (1p2w) 590 | -10/Mines | Found a Scrap Suit stashed away for nefarious purposes 593 | -10/Mines | Found Scrap Suit 665 | -10/Mines | Discovered new exit (range 5) 877 | -10/Mines | Deemed a non-threat by the Exiles lab entrance 877 | -10/Mines | Discovered new exit (range 5) 941 | -10/Mines | Entered Exiles 942 | -10/Exiles | Identified exit to Mines 980 | -10/Exiles | Met 8R-AWN 1004 | -10/Exiles | Met EX-HEX 1100 | -10/Exiles | Met EX-DEC 1125 | -10/Exiles | Learned location of Zion (-7) 1249 | -10/Exiles | Met EX-BIN 1271 | -10/Exiles | Aligned with FarCom system 1273 | -10/Exiles | Given EX-Vault access code 1310 | -10/Exiles | Opened EX-Vault 1322 | -10/Exiles | Found Trap Reconfigurator 1331 | -10/Exiles | Found Firepult 1335 | -10/Exiles | Found Potential Leg 1338 | -10/Exiles | Found Potential Leg 1372 | -10/Exiles | Warned to stay clear of 0b10 Research branches 1486 | -10/Exiles | Stole three prototypes: Potential Leg, Trap Reconfigurator, Firepult 1486 | -10/Exiles | Entered Mines 1523 | -9/Mines | Core integrity fell below 50% 1558 | -9/Mines | Learned location of Storage (-9) 1561 | -9/Mines | Lost 3 parts (1p2n) 1828 | -9/Mines | Build established: Scavenger-Mutant 1877 | -9/Mines | A weapon hastily lodged in a ceiling crevice suddenly fell to the ground 2020 | -9/Mines | Discovered new exit (range 15) 2030 | -9/Mines | Discovered new exit (range 13) 2083 | -9/Mines | Learned Materials non-interactive machine intel 2166 | -9/Mines | Build established: Mutant 2294 | -9/Mines | Entered Materials 2294 | -8/Materials | Evolved 4 slots: Propulsion x1, Utility x2, Weapon x1 2295 | -8/Materials | Loaded intel: 33 non-interactive machine locations 2317 | -8/Materials | Garrison activated, responded to threat 2906 | -8/Materials | Build established: Scavenger-Skirmisher 3018 | -8/Materials | Discovered new exit (range 15) 3247 | -8/Materials | Met 7R-MNS 3291 | -8/Materials | Entered Factory 3291 | -7/Factory | Evolved 2 slots: Propulsion x1, Utility x1 3292 | -7/Factory | Caught up to 7R-MNS 3293 | -7/Factory | FarCom data flow suspended 3633 | -7/Factory | Found Prototype Launcher 3676 | -7/Factory | Discovered new exit (range 15) 3799 | -7/Factory | Build established: Hacker-Tank 3939 | -7/Factory | Discovered new exit (range 5) 3944 | -7/Factory | Entered another Factory area 3944 | -6/Factory | Evolved 2 slots: Power x1, Propulsion x1 3945 | -6/Factory | Caught up to 7R-MNS 4143 | -6/Factory | Identified Rocket Array 4146 | -6/Factory | Identified Exp. Sensor Array 4238 | -6/Factory | Fabricated Cmb. Gravmag System (x2) 4243 | -6/Factory | Garrison activated, responded to threat 4437 | -6/Factory | Build established: Scavenger-Tank 4564 | -6/Factory | Cargo convoy interrupted 4602 | -6/Factory | Discovered new exit (range 15) 4685 | -6/Factory | Found Prototype Device 4708 | -6/Factory | Entered another Factory area 4708 | -5/Factory | Evolved 2 slots: Propulsion x1, Utility x1 4709 | -5/Factory | Caught up to 7R-MNS 4894 | -5/Factory | Discovered new exit (range 8) 5074 | -5/Factory | Discovered new exit (range 16) 5109 | -5/Factory | Entered another Factory area 5109 | -4/Factory | Evolved 2 slots: Utility x2 5110 | -4/Factory | Caught up to 7R-MNS 5393 | -4/Factory | Spotted B-86 Titan 5657 | -4/Factory | Lost 3 parts (1p2u) 5673 | -4/Factory | Spotted B-86 Titan 5772 | -4/Factory | Discovered new exit (range 16) 5773 | -4/Factory | Identified exit to Upper Caves 5773 | -4/Factory | Identified exit to Extension 5773 | -4/Factory | Identified exit to Armory 5775 | -4/Factory | Build established: Hacker-Mutant 5786 | -4/Factory | 7R-MNS lamented failing the tripod run 5801 | -4/Factory | Discovered new exit (range 15) 5802 | -4/Factory | Entered Upper Caves 5833 | -4/Upper Caves | Lost 4 parts (1n3u) 6017 | -4/Upper Caves | Core integrity fell below 50% 6018 | -4/Upper Caves | System corruption reached 10% 6027 | -4/Upper Caves | Attracted the attention of an 0b10 checkpoint 6057 | -4/Upper Caves | Core integrity fell below 20% 6074 | -4/Upper Caves | Lost 6 parts (3n1u2w) 6142 | -4/Upper Caves | Discovered new exit (range 6) 6144 | -4/Upper Caves | Identified exit to Upper Caves 6144 | -4/Upper Caves | Entered another Upper Caves area 6144 | -4/Upper Caves | Spotted O2-2HK(f) 6144 | -4/Upper Caves | Spotted 82-XLD(f) 6145 | -4/Upper Caves | Trap Reconfigurator stolen by Master Thief 6146 | -4/Upper Caves | Encountered a Master Thief 6146 | -4/Upper Caves | Encountered a Master Thief 6168 | -4/Upper Caves | Firepult stolen by Master Thief 6180 | -4/Upper Caves | Discovered new exit (range 12) 6294 | -4/Upper Caves | Discovered new exit (range 5) 6295 | -4/Upper Caves | Identified exit to Warlord 6298 | -4/Upper Caves | Entered Warlord 6318 | -4/Warlord | Build established: Mutant 6340 | -4/Warlord | System corruption cleaned by Quarantine Array 6385 | -4/Warlord | Received a Watcher feed algorithm from an ecstatic Tinkerer 6568 | -4/Warlord | Learned location of Testing (-3) 6568 | -4/Warlord | Learned 4 Research zone layouts 6568 | -4/Warlord | Learned Factory scanalyzer intel 6568 | -4/Warlord | Learned Research garrison access intel 6617 | -4/Warlord | Found Prototype Device 6618 | -4/Warlord | Identified Minesniffer Drone Bay 6620 | -4/Warlord | Found Minesniffer Drone Bay 6692 | -4/Warlord | Warlord's base attacked by MAIN.C 6706 | -4/Warlord | Found Prototype Piercing Weapon 6708 | -4/Warlord | Found Prototype Piercing Weapon 6710 | -4/Warlord | Found Prototype Energy Cannon 6711 | -4/Warlord | Found Prototype Energy Cannon 6714 | -4/Warlord | Found Prototype Energy Gun 6716 | -4/Warlord | Found Prototype Energy Gun 6720 | -4/Warlord | Identified Vortex Lance (x2) 6722 | -4/Warlord | Identified Vortex Cannon (x2) 6723 | -4/Warlord | Identified Vortex Rail (x2) 6827 | -4/Warlord | Found Prototype Special Weapon 6829 | -4/Warlord | Found Prototype Special Weapon 6832 | -4/Warlord | Found Prototype Special Weapon 6836 | -4/Warlord | Found Prototype Special Weapon 6838 | -4/Warlord | Found Prototype Special Weapon 6840 | -4/Warlord | Found Prototype Special Weapon 6945 | -4/Warlord | Found Prototype Processor 6961 | -4/Warlord | Found Prototype Reactor 7042 | -4/Warlord | Warlord forces counterattacked 7073 | -4/Warlord | Found Prototype Processor 7073 | -4/Warlord | Identified Exp. Target Analyzer 7075 | -4/Warlord | Identified Exp. Targeting Computer 7120 | -4/Warlord | Build established: Derelict-Gladiator 7144 | -4/Warlord | Met Warlord 7198 | -4/Warlord | Spotted Striker 7230 | -4/Warlord | Lost 5 allies 7367 | -4/Warlord | Warlord base infiltrated, sounded retreat 7368 | -4/Warlord | Enhanced Grunt warped into view 7368 | -4/Warlord | Enhanced Grunt warped into view 7368 | -4/Warlord | Enhanced Grunt warped into view 7368 | -4/Warlord | Enhanced Demolisher warped into view 7368 | -4/Warlord | Enhanced Demolisher warped into view 7368 | -4/Warlord | Enhanced Demolisher warped into view 7463 | -4/Warlord | Spotted Executioner 7475 | -4/Warlord | Identified RU-N14's Throwing Claymores v3 (x6) 7481 | -4/Warlord | Spotted Striker 7509 | -4/Warlord | Spotted B-90 Cyclops 7535 | -4/Warlord | Spotted Striker 7539 | -4/Warlord | Destroyed Striker 7558 | -4/Warlord | Discovered new exit (range 14) 7563 | -4/Warlord | Identified exit to Proximity Caves 7573 | -4/Warlord | Entered Proximity Caves 7695 | -3/Proximity Caves | Spotted B-86 Titan 7765 | -3/Proximity Caves | Destroyed B-86 Titan 7788 | -3/Proximity Caves | Build established: Derelict-Mutant 7888 | -3/Proximity Caves | Discovered new exit (range 10) 7893 | -3/Proximity Caves | Entered Research 7893 | -3/Research | Evolved 2 slots: Propulsion x2 7895 | -3/Research | Loaded intel: 4 garrison access locations 7960 | -3/Research | Fabricated Cmb. Linear Gravjet (x2) 8177 | -3/Research | Central database locked down 8249 | -3/Research | Fabricated Cmb. Linear Gravjet (x2) 8370 | -3/Research | Identified Vortex Chain Reactor 8400 | -3/Research | Discovered new exit (range 10) 8406 | -3/Research | Identified exit to Testing 8408 | -3/Research | Entered Testing 8414 | -3/Testing | Found Prototype Hackware 8436 | -3/Testing | Found Prototype Leg 8472 | -3/Testing | Found Prototype Device 8472 | -3/Testing | Identified System Purifier 8497 | -3/Testing | Spotted Striker 8497 | -3/Testing | Spotted Striker 8555 | -3/Testing | Build established: Machinist-Gladiator 8617 | -3/Testing | Identified Ghost Barrier 8622 | -3/Testing | Discovered new exit (range 11) 8628 | -3/Testing | Found Prototype Energy Gun 8628 | -3/Testing | Identified Tachyon Dispersion Ray 8638 | -3/Testing | Identified exit to Research 8646 | -3/Testing | Found Prototype Device 8646 | -3/Testing | Identified 2N-1CE's Frost Array 8691 | -3/Testing | Found Portable AFG 8730 | -3/Testing | Found Imp. Powered Armor 8746 | -3/Testing | Found Prototype Energy Gun 8746 | -3/Testing | Identified Hyp. EM Gauss Rifle 8760 | -3/Testing | Rewired PG-4FU7SAILN3 8823 | -3/Testing | Protovariant out of control (PD-0L1E9ADSYN) 8823 | -3/Testing | Unleashed a protovariant (PD-0L1E9ADSYN) 8844 | -3/Testing | Spotted PD-0L1E9ADSYN 8850 | -3/Testing | Spotted Investigator 8862 | -3/Testing | Scanned by Researcher 8891 | -3/Testing | Entered Research 8891 | -2/Research | Warlord forces began assault on 0b10 8891 | -2/Research | Evolved 2 slots: Power x1, Weapon x1 8900 | -2/Research | Identified exit to Access 8916 | -2/Research | Build established: Hacker-Mutant 9001 | -2/Research | Research machine network offline 9244 | -2/Research | Identified Myomer Exoskeleton 9289 | -2/Research | Met up with Warlord 9323 | -2/Research | Spotted Striker 9409 | -2/Research | Spotted Striker 9596 | -2/Research | Borebot progress halted 9616 | -2/Research | Borebot progress halted 9658 | -2/Research | Borebot progress halted 9721 | -2/Research | Build established: Hacker-Skirmisher 9772 | -2/Research | Discovered new exit (range 9) 9915 | -2/Research | Found Prototype Processor 9915 | -2/Research | Identified Exp. Core Analyzer 9919 | -2/Research | Found Prototype Device 9919 | -2/Research | Identified Adv. Kinecellerator 9934 | -2/Research | Found Exp. Targeting Computer 10050 | -2/Research | Spotted Striker 10053 | -2/Research | Warlord invited to help at Command 10053 | -2/Research | Given Cave Seal Controls access code 10063 | -2/Research | Spotted Executioner 10064 | -2/Research | Spotted Executioner 10068 | -2/Research | Destroyed Executioner 10102 | -2/Research | Lost 8 allies 10187 | -2/Research | Entered Access 10187 | -1/Access | Evolved 2 slots: Utility x2 10209 | -1/Access | Build established: Hacker-Gunner 10537 | -1/Access | Energy Cycler disabled 10658 | -1/Access | Found Prototype Ballistic Gun 10659 | -1/Access | Identified Multirail 10812 | -1/Access | Found Prototype Launcher 10813 | -1/Access | Identified Com. Tesla Bomb Launcher 10932 | -1/Access | Build established: Scavenger-Gunner 11082 | -1/Access | Garrison activated, responded to threat 11122 | -1/Access | Garrison activated, responded to threat 11186 | -1/Access | Destroyed 13 combat bots 11187 | -1/Access | First assault squad dispatched 11198 | -1/Access | System corruption reached 10% 11229 | -1/Access | Core integrity fell below 50% 11235 | -1/Access | Core integrity fell below 20% 11251 | -1/Access | Destroyed by G-73 Enforcer with Heavy Laser Last Messages --------------- 11232_ Slug penetrates Wall. 11232_ Slug penetrates Earth. 11232_ Slug penetrates Wall. 11233_ The unstable cave ceiling collapses. 11233_ X-87 Electro IFF system glitched. 11233_ K-01 Serf collects debris. 11234_ Penetrated by Slug. 11235_ System corrupted: Heat flow error (+237). 11235_ Slug penetrates Wall. 11237_ Slug penetrates G-73 Enforcer. 11237_ Penetrated by Slug. 11238_ R-10 Processor collects Imp. Antigrav System+. 11248_ Slug penetrates H-88 Terminator. 11248_ Slug penetrates Wall. 11248_ X-87 Electro IFF system glitched. 11248_ Penetrated by Slug. 11248_ Exp. Energy Well destroyed. 11249_ X-87 Electro IFF system glitched. 11250_ System corrupted: Energy discharge (-31). 11250_ Penetrated by Slug. Map ----- +----------------------------------------------------+ | ?????????????????????????# # # | | ?????????????????????????# # + | | ?????????????????????????# # # | | ?????????????????????????+ # # | | ?????????????????????????# # " # ?? | | ?????????????????????????# # """ #####????? | | ?????????????????????????# # G #????????? | | ?????????????????????????# # """ #????????? | | ?????????????????????????# # " #????????? | | ?????????????????????????# # #????????? | | ?????????????????????????# # #????????? | | ?????????????###########?# "#############????????? | | ?????????????# ### ###???????????????????? | | ?????????????# # #???????????????????? | | ?????????????# " # ###?????????????????? | | ?????????????# """ / " ????????????? | | ?????????????# """ # ########????????????? | | ?????????????# " # #???????????????????? | | ?????????????# ## k##???????????????????? | | ?????????????# ! % ## #????????????????????? | | ?????????????#######+#### #????######??????????? | | ???????????????????#%#??# #????# #??????????? | | ??????????????????## #??# t#????# #??????????? | | ??????????????????## #??# #????# #??????????? | | ???????????????????# #### #????# #??????????? | | ???????????????????# ####@ ###??# #??????????? | | ????????#########??# % # #??# #??????????? | | ????????# ??# ###### #??????????? | | ????????# = ## k g #??????????? | | ????????# # R #??????????? | | ????????# ] + #??????????? | | ##??###?# " # x ########+#??????????? | | ##?# #?# """ # h ####### ?????????? | | % ### #?# """ ?# x # #???????? | | |% # ###?? " ?# hh #]] #???????? | | %[ ## # ########??# #]! !#???????? | | %% " ##########h """"" #] #???????? | | # % # h """F"" # ! ]#???????? | | # """ "" #######???????? | | # h ????????????? | | ## ????????????? | | ?## = ?????????????? | | [ %* ???????????????? | | =*= ??????????????? | | # = ########### ??????????????? | | # ! ! #?????????? ??????????????? | | # % %= #?????????? ^ ???????????????? | | / %| #?????????? ???????????????? | | # = #??????????? * ?????????????????? | | # %= #??????????? ???????????????????? | +----------------------------------------------------+ Best States ------------- Heat Dissipation 152 Energy Generation 75 Energy Capacity 1300 Matter Stores 300 Matter Capacity 300 Sight Range 16 Robot Scan Range 20 Terrain Scan Density 10 Armor Coverage 400 Resistance: TH 10 Propulsion Shielding 66 Phase Shifting 10 Evasion (%) 67 Targeting Accuracy 12 Melee Accuracy 8 Target Analysis 12 Core Analysis 8 Armor Integrity Analysis 40 Recoil Reduction 2 Kinecelleration 50 Offensive Hacking 30 Defensive Hacking 20 Authchip Count 2 Item Schematics ----------------- Cmb. Gravmag System | -7/Factory | Hacked Adv. Hacking Suite | -5/Factory | Hacked Cmb. Linear Gravjet | -5/Factory | Downloaded Robot Schematics ------------------ None Fabricated ------------ Cmb. Gravmag System | x2 | -6/Factory Cmb. Linear Gravjet | x2 | -3/Research | Authchip Cmb. Linear Gravjet | x2 | -3/Research | Authchip Repaired ---------- Nothing Studied --------- Minigun | -8/Materials | Hacked Wheel | -8/Materials | Hacked Com. Wheel | -8/Materials | Hacked Nuclear Core | -8/Materials | Hacked Gravmag Array | -6/Factory | Hacked Gravmag System | -6/Factory | Hacked Gauss Rifle | -6/Factory | Hacked KE Penetrator | -5/Factory | Hacked Cmb. Gravmag System | -5/Factory | Hacked Wave Gun | -5/Factory | Hacked Cmb. Linear Gravjet | -3/Research | Hacked Imp. Gyrokinetic Inverter | -3/Research | Hacked Imp. Antigrav System | -3/Testing | Hacked Nova Cannon | -3/Testing | Hacked Alien Tech Used ----------------- None Achievements -------------- Bending The Rules Hammer Time Official Business Physics Protects Tailor-made Welcome To The Revolution Challenges ------------ None Game ------ Seed DisruptionCommMachine Manual? 0 Play Time 02:15:57 Cumulative 436.0 hours Start 2025.10.28 @ 01:08:14 End 2025.10.28 @ 03:37:00 Sessions 6 Manual Loads 0 Difficulty Rogue Special Mode None Game No. 558 Rogue 558 Adventurer 0 Explorer 0 Win Type - Total 13 Types 6/0/2/2/1/0/2/0/0/0 Lore% 89 Gallery% 84 Achievement% 57 Wizard Run 0 Options --------- Layout 0 ASCII 0 Keyboard 0 Movement Mouse Keybinds 0 Fullscreen 1 Font 24/Terminus Map View 76x50 Zoom Use 0% Tactical HUD 1 Map Filters NONE Filters NONE Steam 1 RUN: 0a8dc791-678e-42db-badf-808ca46cd727